bitfinex-derivatives/quotes_BTCF0:USTF0_20251219
["timestamp","ask_amount","ask_price","bid_price","bid_amount"]
[1766105157088,0.1,85388.0,85378.0,0.1477089]
[1766105157890,0.00017574,85392.0,85378.0,0.1477089]
[1766105158791,0.01189284,85392.0,85378.0,0.1477089]
[1766105158988,0.01189284,85392.0,85378.0,0.13599]
[1766105159185,0.14641,85384.0,85377.0,0.3608]
[1766105159490,0.3608,85378.0,85369.0,0.13599]
[1766105160099,0.3608,85378.0,85370.0,0.1477101]
[1766105160600,0.3608,85378.0,85370.0,0.13599]
[1766105163894,0.3608,85374.0,85370.0,0.13599]
[1766105165497,0.3008,85374.0,85370.0,0.13599]
[1766105165692,0.0117186,85382.0,85370.0,0.13599]
[1766105167103,0.50721,85384.0,85370.0,0.13599]
[1766105167401,0.50721,85384.0,85370.0,0.1477101]
[1766105167604,0.0117182,85385.0,85370.0,0.1477101]
[1766105167605,0.00017574,85392.0,85383.0,0.3608]
[1766105167803,0.14350574,85392.0,85383.0,0.3608]
[1766105168300,0.14134,85382.0,85378.0,0.02914265]
[1766105168506,0.3728489,85379.0,85367.0,0.00017574]
[1766105168693,0.3608,85372.0,85367.0,0.00017574]
[1766105169493,0.005,85368.0,85358.0,0.11776]
[1766105169692,0.3608,85363.0,85358.0,0.11776]
[1766105170101,0.3608,85363.0,85354.0,0.0117223]
[1766105170102,0.3608,85363.0,85355.0,0.46232]
[1766105171503,0.3608,85363.0,85356.0,0.14191]
[1766105172107,0.3608,85363.0,85356.0,0.153632]
[1766105172309,0.00017574,85368.0,85358.0,0.1536317]
[1766105172608,0.00017574,85368.0,85358.0,0.14191]
[1766105172798,0.13656574,85368.0,85356.0,0.3608]
[1766105173203,0.13656574,85368.0,85356.0,0.50703]
[1766105173613,0.13656574,85368.0,85357.0,0.14623]
[1766105174104,0.13639,85367.0,85356.0,0.3608]
[1766105174294,0.0117212,85362.0,85356.0,0.3608]
[1766105174498,0.13639,85364.0,85356.0,0.3608]
[1766105176098,0.00017574,85368.0,85357.0,0.14623]
[1766105176708,0.00017574,85368.0,85357.0,0.1579519]
[1766105178111,0.00017574,85368.0,85359.0,0.0117216]
[1766105178306,0.00017574,85368.0,85357.0,0.14623]
[1766105179211,0.00017574,85368.0,85358.0,0.0117217]
[1766105181707,0.00017574,85368.0,85358.0,0.1579517]
[1766105182405,0.00017574,85368.0,85358.0,0.14623]
[1766105184115,0.00017574,85368.0,85362.0,0.14623]
[1766105184315,0.3608,85373.0,85363.0,0.1579511]
[1766105184613,0.3608,85373.0,85363.0,0.14623]
[1766105186012,0.56694893,85373.0,85363.0,0.14623]
[1766105186614,0.3608,85373.0,85363.0,0.14623]
[1766105186809,0.00017574,85377.0,85365.0,0.14623]
[1766105187004,0.63024,85376.0,85365.0,0.14623]
[1766105187206,0.63024,85376.0,85367.0,0.14623]
[1766105187505,0.02524,85376.0,85367.0,0.14623]
[1766105192010,0.3608,85381.0,85369.0,0.14623]
[1766105192210,0.1481092,85377.0,85365.0,0.14623]
[1766105192415,0.1481092,85377.0,85364.0,0.3608]
[1766105192803,0.34253893,85374.0,85364.0,0.3608]
[1766105193112,0.13639,85374.0,85364.0,0.3608]
[1766105194619,0.13639,85374.0,85364.0,0.3725209]
[1766105194917,0.13639,85374.0,85366.0,0.0117206]
[1766105196715,0.13639,85374.0,85365.0,0.0117208]
[1766105197621,0.13639,85374.0,85367.0,0.0117205]
[1766105198322,0.13639,85374.0,85369.0,0.0117202]
[1766105198623,0.13656574,85378.0,85371.0,0.0117199]
[1766105199124,0.13656574,85378.0,85372.0,0.0117198]
[1766105199818,0.3608,85381.0,85370.0,0.14623]
[1766105200019,0.6608,85393.0,85385.0,0.011718]
[1766105200215,0.6608,85393.0,85390.0,0.3608]
[1766105200521,0.6608,85393.0,85390.0,0.3008]
[1766105201925,0.6608,85393.0,85388.0,0.3608]
[1766105202121,0.13639,85392.0,85388.0,0.3608]
[1766105202522,0.6608,85393.0,85388.0,0.3608]
[1766105206227,0.80748,85393.0,85388.0,0.3608]
[1766105206815,0.6608,85393.0,85388.0,0.3608]
[1766105208032,0.80744,85397.0,85388.0,0.3608]
[1766105208333,0.14668,85396.0,85388.0,0.3608]
[1766105219437,0.66076,85397.0,85389.0,0.1481475]
[1766105219652,0.09826,85397.0,85389.0,0.1481475]
[1766105219838,0.00017574,85400.0,85389.0,0.1481475]
[1766105220439,0.14668,85399.0,85388.0,0.3608]
[1766105220845,0.14668,85399.0,85388.0,0.3725176]
[1766105221940,0.00017574,85400.0,85389.0,0.00034]
[1766105224245,4e-08,85400.0,85393.0,0.00034]
[1766105224449,4e-08,85400.0,85399.0,0.3608]
[1766105233743,0.43236,85411.0,85402.0,0.00037]
[1766105233948,0.43199,85411.0,85399.0,0.3608]
[1766105234348,0.00234144,85418.0,85405.0,0.0117152]
[1766105234549,0.00234144,85418.0,85410.0,0.3608]
[1766105235561,0.1490037,85417.0,85410.0,0.3608]
[1766105236862,0.13729,85417.0,85410.0,0.3608]
[1766105238155,0.00125144,85418.0,85411.0,0.00159]
[1766105238359,0.66056,85426.0,85411.0,0.00159]
[1766105238561,0.66056,85426.0,85410.0,0.3608]
[1766105238562,0.66056,85426.0,85419.0,0.3608]
[1766105238861,0.66056,85426.0,85419.0,0.3613]
[1766105239670,0.8095625,85426.0,85419.0,0.3608]
[1766105239858,0.1490027,85424.0,85419.0,0.3608]
[1766105240164,0.13729,85419.0,85408.0,0.22748]
[1766105240366,0.3608,85412.0,85405.0,0.00017563]
[1766105241463,0.3608,85412.0,85395.0,0.3608]
[1766105241464,0.13729,85411.0,85395.0,0.3608]
[1766105241656,0.3608,85403.0,85395.0,0.3608]
[1766105242256,0.3608,85403.0,85395.0,0.36134]
[1766105242868,0.3608,85403.0,85396.0,0.00054]
[1766105245868,0.3608,85403.0,85395.0,0.3608]
[1766105246763,0.3608,85403.0,85395.0,0.36261]
[1766105246957,0.3608,85403.0,85396.0,0.00181]
[1766105247357,0.0117157,85402.0,85396.0,0.00181]
[1766105247673,0.0117157,85402.0,85395.0,0.3608]
[1766105247970,0.3608,85403.0,85395.0,0.3608]
[1766105249065,0.3608,85403.0,85392.0,0.00179]
[1766105249268,0.0117164,85398.0,85392.0,0.00179]
[1766105250677,0.3608,85403.0,85392.0,0.00179]
[1766105250678,0.0117159,85401.0,85392.0,0.00179]
[1766105251064,0.0117162,85399.0,85391.0,0.29784]
[1766105251364,0.0117171,85393.0,85390.0,3e-08]
[1766105251668,0.011718,85386.0,85380.0,0.36337]
[1766105251862,0.011718,85386.0,85381.0,0.55064]
[1766105252064,0.0117176,85389.0,85381.0,0.55064]
[1766105252263,0.0117176,85389.0,85381.0,0.55316]
[1766105252675,0.0117172,85392.0,85381.0,0.55316]
[1766105252977,0.0117175,85390.0,85381.0,0.55316]
[1766105253773,0.0117177,85388.0,85381.0,0.55316]
[1766105253971,0.011718,85386.0,85378.0,0.36314254]
[1766105254271,0.00017563,85391.0,85378.0,0.36314254]
[1766105255169,0.0117178,85387.0,85378.0,0.36314254]
[1766105255370,0.0117177,85388.0,85378.0,0.36314254]
[1766105256582,0.0117179,85386.0,85378.0,0.36314254]
[1766105257867,0.00017563,85391.0,85378.0,0.36314254]
[1766105258071,0.0117175,85389.0,85378.0,0.36314254]
[1766105259582,0.00017563,85391.0,85378.0,0.36314254]
[1766105259583,0.00017563,85391.0,85386.0,0.3608]
[1766105260588,0.00017563,85391.0,85387.0,0.0117178]
[1766105260793,0.00017563,85391.0,85386.0,0.3608]
[1766105263492,0.21770999,85400.0,85386.0,0.3608]
[1766105263796,0.0117163,85398.0,85386.0,0.3608]
[1766105266685,0.0117163,85398.0,85386.0,0.3725179]
[1766105266887,0.3608,85395.0,85380.0,0.21771269]
[1766105267087,0.3725168,85395.0,85380.0,0.21771269]
[1766105269393,0.3725168,85395.0,85382.0,0.0117184]
[1766105269703,0.3608,85395.0,85384.0,0.0117181]
[1766105269885,0.01189153,85401.0,85385.0,0.3608]
[1766105270082,0.0117161,85399.0,85385.0,0.372518]
[1766105270283,0.0117161,85399.0,85387.0,0.0117178]
[1766105270692,0.0117161,85399.0,85385.0,0.372518]
[1766105272882,0.3608,85398.0,85385.0,0.372518]
[1766105273882,0.3608,85398.0,85387.0,0.0117178]
[1766105274986,0.3608,85398.0,85389.0,0.0117175]
[1766105275992,0.3608,85398.0,85391.0,0.0117172]
[1766105276896,0.00017563,85401.0,85388.0,0.20599399]
[1766105277096,0.0117142,85414.0,85396.0,0.3608]
[1766105277289,0.12136,85413.0,85403.0,0.3608]
[1766105277596,0.12136,85413.0,85410.0,0.3608]
[1766105278592,0.3608,85411.0,85403.0,0.00017563]
[1766105278798,0.1552846,85410.0,85403.0,0.00017563]
[1766105279293,0.14357,85410.0,85403.0,0.00017563]
[1766105279492,0.0117148,85409.0,85403.0,0.00017563]
[1766105279707,0.1552848,85409.0,85403.0,0.00017563]
[1766105280197,0.3608,85404.0,85403.0,0.00017563]
[1766105280986,0.3608,85404.0,85395.0,0.3608]
[1766105281595,0.2808,85404.0,85395.0,0.3608]
[1766105281801,0.26062,85404.0,85395.0,0.3608]
[1766105282003,0.21770869,85410.0,85395.0,0.3608]
[1766105282196,0.20599399,85410.0,85398.0,0.0117162]
[1766105282497,0.1552809,85438.0,85417.0,0.0117135]
[1766105282695,0.20599399,85450.0,85419.0,0.3608]
[1766105282696,0.3608,85440.0,85419.0,0.3608]
[1766105282895,0.14357,85453.0,85439.0,0.7216]
[1766105283095,0.20599399,85450.0,85439.0,0.3608]
[1766105283300,0.20599399,85450.0,85449.0,0.3608]
[1766105283501,0.14357,85453.0,85449.0,0.3608]
[1766105283799,0.11288,85456.0,85450.0,0.3608]
[1766105285895,0.14357,85452.0,85442.0,0.00017563]
[1766105286105,0.14357,85451.0,85442.0,0.00017563]
[1766105293698,0.3608,85453.0,85443.0,0.13849]
[1766105296212,0.51071,85453.0,85442.0,0.00017563]
[1766105296511,0.14991,85452.0,85442.0,0.00017563]
[1766105307419,0.156459,85451.0,85440.0,0.2808]
[1766105307914,0.14475,85436.0,85432.0,0.39956]
[1766105308117,0.3608,85436.0,85430.0,0.58668]
[1766105308718,0.3608,85436.0,85428.0,0.66024]
[1766105310117,0.00017563,85442.0,85428.0,0.66024]
[1766105310422,0.00017563,85442.0,85434.0,0.14924]
[1766105311224,0.00017563,85442.0,85433.0,0.3725114]
[1766105313922,0.3608,85449.0,85438.0,0.14924]
[1766105314223,0.1977,85503.0,85433.0,0.3608]
[1766105314224,0.14709034,85458.0,85447.0,0.0508]
[1766105314420,0.00099,85454.0,85445.0,0.15435]
[1766105314617,0.00099,85454.0,85435.0,0.0117112]
[1766105314618,0.3608,85448.0,85435.0,0.14924]
[1766105314810,0.3608,85448.0,85435.0,0.40344]
[1766105315325,0.3725095,85448.0,85433.0,0.37268703]
[1766105315722,0.3608,85448.0,85433.0,0.37268703]
[1766105316023,0.3608,85448.0,85433.0,0.36097563]
[1766105316222,0.3608,85448.0,85438.0,0.0117107]
[1766105316726,0.3608,85448.0,85435.0,0.0117111]
[1766105316920,0.3608,85446.0,85433.0,0.36097563]
[1766105317824,0.3608,85446.0,85438.0,0.0117107]
[1766105318026,0.3608,85446.0,85435.0,0.0117111]
[1766105318231,0.3608,85446.0,85437.0,0.0117109]
[1766105318412,0.3608,85446.0,85434.0,0.0117112]
[1766105318618,0.3608,85446.0,85436.0,0.011711]
[1766105318819,0.3608,85446.0,85433.0,0.37268703]
[1766105319025,0.3608,85446.0,85433.0,0.36097563]
[1766105322429,0.3608,85446.0,85436.0,0.011711]
[1766105327032,0.3608,85444.0,85436.0,0.011711]
[1766105327238,0.3608,85444.0,85433.0,0.01188693]
[1766105331541,0.3608,85444.0,85429.0,0.23832]
[1766105331730,0.3608,85444.0,85420.0,0.3608]
[1766105331731,0.3725109,85437.0,85420.0,0.3608]
[1766105331931,0.3608,85437.0,85425.0,0.0117125]
[1766105332132,0.3608,85437.0,85427.0,0.0117123]
[1766105332829,0.3608,85437.0,85423.0,0.00017563]
[1766105333028,0.3608,85428.0,85420.0,0.3608]
[1766105333230,0.3608,85428.0,85417.0,0.0117135]
[1766105334142,0.3608,85428.0,85416.0,0.2724737]
[1766105334525,0.3608,85428.0,85416.0,0.40327]
[1766105334730,0.00017563,85431.0,85427.0,0.3608]
[1766105335329,0.00017563,85431.0,85427.0,0.1834]
[1766105335545,0.00017563,85431.0,85427.0,0.18322]
[1766105336241,0.01188743,85431.0,85427.0,0.18322]
[1766105336446,0.3608,85428.0,85414.0,0.00017563]
[1766105336644,0.0117139,85416.0,85403.0,0.24616]
[1766105336946,0.3608,85408.0,85402.0,0.19152]
[1766105338355,0.3608,85408.0,85403.0,0.14251]
[1766105338850,0.3608,85408.0,85402.0,0.2032356]
[1766105339040,0.3608,85408.0,85402.0,0.3457456]
[1766105340154,0.3608,85418.0,85406.0,0.14251]
[1766105340350,0.3608,85418.0,85410.0,0.14251]
[1766105340749,0.25468,85424.0,85417.0,0.3608]
[1766105341640,0.14851,85423.0,85417.0,0.3608]
[1766105341853,0.14851,85423.0,85410.0,0.0117145]
[1766105342044,0.1602229,85423.0,85409.0,0.3608]
[1766105342243,0.1415,85417.0,85402.0,0.3608]
[1766105342436,0.1532137,85417.0,85402.0,0.3725157]
[1766105342635,0.1415,85417.0,85404.0,0.0117154]
[1766105343039,0.1415,85417.0,85402.0,0.3608]
[1766105343247,0.3725136,85418.0,85396.0,0.00017563]
[1766105343248,0.011715,85407.0,85396.0,0.00017563]
[1766105343450,0.7216,85402.0,85384.0,0.3608]
[1766105343751,0.7216,85402.0,85378.0,4e-08]
[1766105343752,0.20573069,85394.0,85378.0,4e-08]
[1766105344051,0.20573069,85388.0,85378.0,4e-08]
[1766105344239,0.1034,85387.0,85378.0,4e-08]
[1766105344436,0.0117192,85377.0,85363.0,0.0001455]
[1766105345154,0.1034,85387.0,85364.0,0.1475]
[1766105345343,0.1034,85387.0,85363.0,0.0001455]
[1766105345344,0.00017563,85391.0,85372.0,0.1475]
[1766105345545,0.0016,85390.0,85374.0,0.1475]
[1766105345745,0.00017563,85391.0,85374.0,0.1475]
[1766105346341,0.00017563,85391.0,85374.0,0.1592194]
[1766105346541,0.00017563,85391.0,85378.0,0.1475]
[1766105347152,0.00017563,85391.0,85373.0,0.00017563]
[1766105347755,0.3608,85385.0,85373.0,0.00017563]
[1766105348859,0.3608,85385.0,85374.0,0.1475]
[1766105349052,0.3608,85385.0,85377.0,0.1592191]
[1766105349251,0.3608,85385.0,85377.0,0.1475]
[1766105350752,0.3608,85385.0,85378.0,0.159219]
[1766105352058,0.00017563,85391.0,85384.0,0.3608]
[1766105353561,0.00734,85390.0,85384.0,0.35346]
[1766105355560,0.00017563,85391.0,85384.0,0.35346]
[1766105356258,0.3608,85396.0,85386.0,0.1579478]
[1766105356447,0.89684,85396.0,85388.0,0.0117175]
[1766105356648,0.89684,85396.0,85388.0,0.1579475]
[1766105356949,0.89684,85396.0,85385.0,0.011718]
[1766105357147,0.89684,85396.0,85385.0,0.157948]
[1766105357350,0.3608,85396.0,85388.0,0.1579476]
[1766105357555,0.3608,85396.0,85388.0,0.14623]
[1766105357755,0.3608,85396.0,85385.0,0.011718]
[1766105358862,0.00102563,85399.0,85384.0,0.35346]
[1766105359462,0.00102563,85399.0,85382.0,0.1579484]
[1766105359768,0.00102563,85399.0,85389.0,0.3608]
[1766105360155,0.0117169,85394.0,85389.0,0.35994]
[1766105360466,0.3608,85390.0,85379.0,0.3608]
[1766105361060,0.3608,85390.0,85379.0,0.0117188]
[1766105361266,0.3608,85390.0,85381.0,0.0117185]
[1766105361464,0.01189183,85399.0,85386.0,0.1579478]
[1766105361465,0.3402,85398.0,85386.0,0.1579478]
[1766105362868,0.3402,85398.0,85386.0,0.14623]
[1766105365268,0.3402,85398.0,85387.0,0.0117178]
[1766105365670,0.3402,85398.0,85386.0,0.14623]
[1766105366064,0.3519163,85398.0,85386.0,0.14623]
[1766105366267,0.3523063,85398.0,85386.0,0.14623]
[1766105366468,0.0117166,85396.0,85385.0,0.3608]
[1766105366972,0.0121066,85396.0,85385.0,0.3608]
[1766105367360,0.00039,85393.0,85385.0,0.3608]
[1766105369785,0.00039,85393.0,85385.0,0.36027]
[1766105370374,0.3402,85398.0,85385.0,0.36027]
[1766105370775,0.5086,85397.0,85385.0,0.36027]
[1766105372175,0.5086,85397.0,85387.0,0.0117177]
[1766105372380,0.5086,85397.0,85385.0,0.36027]
[1766105372579,0.0117167,85395.0,85385.0,0.36027]
[1766105373177,0.5086,85397.0,85385.0,0.36027]
[1766105373874,0.0117172,85392.0,85385.0,0.36027]
[1766105374073,0.00017,85391.0,85385.0,0.36027]
[1766105374275,0.00017,85385.0,85373.0,0.00017563]
[1766105374784,0.00017,85375.0,85361.0,0.5180813]
[1766105375174,0.3608,85369.0,85363.0,0.0118665]
[1766105375370,0.3608,85377.0,85363.0,0.0118665]
[1766105375575,0.00017,85380.0,85363.0,0.1457055]
[1766105376075,0.36114563,85380.0,85368.0,0.3725203]
[1766105377480,0.14329,85379.0,85368.0,0.3608]
[1766105380992,0.011719,85378.0,85368.0,0.3608]
[1766105381685,0.14329,85379.0,85368.0,0.3608]
[1766105383282,0.155009,85379.0,85368.0,0.3608]
[1766105383484,0.0117192,85377.0,85368.0,0.3608]
[1766105385784,0.14329,85379.0,85368.0,0.3608]
[1766105385985,0.14329,85379.0,85363.0,0.00032113]
[1766105385986,0.00024,85368.0,85354.0,0.14048]
[1766105386180,0.3608,85361.0,85354.0,0.14048]
[1766105386677,0.3608,85361.0,85348.0,0.28064]
[1766105386678,0.3608,85361.0,85348.0,0.14048]
[1766105386879,0.20605724,85360.0,85348.0,0.14048]
[1766105387083,8.974e-05,85359.0,85348.0,0.14048]
[1766105387287,8.974e-05,85359.0,85349.0,0.011723]
[1766105387487,8.974e-05,85359.0,85350.0,0.14048]
[1766105387875,8.974e-05,85359.0,85351.0,0.0117227]
[1766105388082,0.56685724,85370.0,85358.0,0.14048]
[1766105388275,0.14828,85369.0,85354.0,0.3608]
[1766105388683,0.20605724,85364.0,85354.0,0.3608]
[1766105388887,0.14828,85369.0,85354.0,0.3608]
[1766105389083,5.576e-05,85368.0,85355.0,0.1522022]
[1766105389385,5.576e-05,85368.0,85355.0,0.14048]
[1766105389777,0.01177616,85368.0,85355.0,0.14048]
[1766105389976,0.0117207,85366.0,85355.0,0.14048]
[1766105390388,0.1600007,85366.0,85354.0,0.3608]
[1766105391186,0.3608,85356.0,85347.0,0.3608]
[1766105392279,0.3608,85356.0,85347.0,0.50128]
[1766105393998,0.3608,85349.0,85347.0,0.14048]
[1766105395697,0.57857894,85359.0,85347.0,0.14048]
[1766105395880,0.72685894,85359.0,85347.0,0.50128]
[1766105396389,0.0117222,85355.0,85347.0,0.3608]
[1766105396795,0.1600025,85353.0,85347.0,0.3608]
[1766105396994,0.3608,85348.0,85337.0,0.14048]
[1766105397796,0.3608,85348.0,85338.0,0.01406814]
[1766105397997,0.3608,85348.0,85338.0,0.15454814]
[1766105398507,0.3608,85348.0,85338.0,0.14282364]
[1766105398800,0.50908,85348.0,85338.0,0.00234364]
[1766105399404,0.3608,85348.0,85338.0,0.00234364]
[1766105399606,0.3608,85348.0,85338.0,0.14282364]
[1766105400298,0.3608,85348.0,85339.0,0.14048]
[1766105401085,0.00017574,85352.0,85342.0,0.14048]
[1766105401289,0.0117227,85351.0,85342.0,0.14048]
[1766105401691,0.31777844,85352.0,85342.0,0.14048]
[1766105403202,0.00017574,85356.0,85346.0,0.14643]
[1766105403406,0.0117201,85370.0,85355.0,0.1581522]
[1766105403598,0.5402,85372.0,85360.0,0.1581514]
[1766105403901,0.3608,85372.0,85361.0,0.14643]
[1766105404289,0.50666,85379.0,85367.0,0.3608]
[1766105404490,0.0117193,85376.0,85367.0,0.3608]
[1766105404689,0.14586,85377.0,85367.0,0.3608]
[1766105404690,0.1575796,85374.0,85367.0,0.3608]
[1766105405006,0.14586,85376.0,85367.0,0.1308]
[1766105405796,0.3608,85379.0,85367.0,0.1308]
[1766105407291,0.499,85379.0,85367.0,0.1308]
[1766105407907,0.38568,85381.0,85376.0,0.14844]
[1766105409311,0.38568,85381.0,85375.0,0.3608]
[1766105410304,0.00017574,85382.0,85375.0,0.3608]
[1766105411002,0.3608,85390.0,85376.0,0.14844]
[1766105411206,0.79952,85394.0,85384.0,0.3608]
[1766105411509,0.66132,85393.0,85384.0,0.3608]
[1766105412901,0.66132,85393.0,85384.0,0.50858]
[1766105413106,0.66132,85393.0,85385.0,0.14778]
[1766105413306,0.00017574,85397.0,85385.0,0.14778]
[1766105414208,0.0117166,85396.0,85385.0,0.14778]
[1766105414398,0.00017574,85397.0,85391.0,0.3608]
[1766105414600,0.14984574,85397.0,85391.0,0.3608]
[1766105414910,0.00017574,85397.0,85391.0,0.3608]
[1766105416005,0.00017574,85397.0,85392.0,0.14778]
[1766105416205,0.24744,85406.0,85395.0,0.14778]
[1766105416392,0.24744,85406.0,85401.0,0.3608]
[1766105416592,0.3608,85414.0,85401.0,0.3608]
[1766105416798,0.69128,85414.0,85402.0,0.14778]
[1766105417198,0.33048,85414.0,85411.0,0.3608]
[1766105424616,0.17048,85414.0,85411.0,0.3608]
[1766105424818,0.01066,85414.0,85411.0,0.3608]
[1766105426217,0.00017563,85417.0,85411.0,0.50858]
[1766105426421,0.0117118,85431.0,85413.0,0.14778]
[1766105426623,2.46128,85437.0,85411.0,0.3608]
[1766105426624,0.40276,85432.0,85422.0,0.1594929]
[1766105427409,0.40276,85432.0,85431.0,0.3608]
[1766105427615,0.14967,85431.0,85420.0,0.3608]
[1766105428319,0.3608,85424.0,85418.0,0.00017563]
[1766105429217,0.3608,85424.0,85418.0,0.14795563]
[1766105429525,0.76356,85432.0,85421.0,0.3608]
[1766105430130,0.90173,85432.0,85421.0,0.3608]
[1766105430329,0.35593904,85431.0,85421.0,0.3608]
[1766105430530,0.0117121,85429.0,85421.0,0.3608]
[1766105431417,0.76356,85432.0,85421.0,0.50765]
[1766105431616,0.20605724,85431.0,85421.0,0.50765]
[1766105431818,0.76356,85432.0,85421.0,0.50765]
[1766105432124,0.20605724,85431.0,85421.0,0.50765]
[1766105433225,0.40276,85432.0,85430.0,0.3608]
[1766105433622,0.40276,85432.0,85430.0,0.2808]
[1766105433824,0.40276,85432.0,85423.0,0.0117128]
[1766105434123,0.40276,85432.0,85421.0,0.50765]
[1766105434724,0.40276,85432.0,85422.0,0.011713]
[1766105435325,0.40276,85432.0,85421.0,0.50765]
[1766105435835,0.13817,85434.0,85421.0,0.50765]
[1766105436921,0.13817,85434.0,85422.0,0.14685]
[1766105437723,0.13817,85434.0,85423.0,0.0117128]
[1766105437921,0.13817,85434.0,85426.0,0.0117123]
[1766105438123,0.13817,85434.0,85428.0,0.0117121]
[1766105438324,0.71583689,85436.0,85430.0,0.0117118]
[1766105438528,0.6608,85441.0,85435.0,0.3725111]
[1766105438727,0.13817,85443.0,85435.0,0.3725111]
[1766105438919,0.13817,85447.0,85439.0,0.0117106]
[1766105439124,0.13817,85447.0,85435.0,0.3608]
[1766105439125,0.36656601,85458.0,85442.0,0.14685]
[1766105439329,0.56124,85457.0,85449.0,0.0117092]
[1766105439837,2.46064,85472.0,85456.0,0.1585582]
[1766105440025,0.66088,85474.0,85458.0,0.158558]
[1766105440226,0.6725859,85474.0,85458.0,0.158558]
[1766105440427,0.6725859,85474.0,85458.0,0.14685]
[1766105440627,0.0117062,85472.0,85458.0,0.14685]
[1766105441127,0.5106761,85473.0,85463.0,0.3608]
[1766105441335,0.49897,85473.0,85463.0,0.3608]
[1766105441533,0.3608,85473.0,85463.0,0.3608]
[1766105442234,0.0117061,85472.0,85463.0,0.3608]
[1766105442928,0.1478161,85472.0,85463.0,0.3608]
[1766105443340,0.1478167,85469.0,85459.0,0.00017552]
[1766105444037,0.3608,85464.0,85459.0,0.00017552]
[1766105447538,0.3608,85464.0,85459.0,0.13902552]
[1766105447742,0.3608,85464.0,85459.0,0.00017552]
[1766105448037,0.0117062,85472.0,85463.0,0.3608]
[1766105448544,0.1478162,85472.0,85463.0,0.3608]
[1766105449134,0.13611,85472.0,85463.0,0.3608]
[1766105449537,0.0117063,85471.0,85463.0,0.3608]
[1766105449738,0.1478163,85471.0,85463.0,0.3608]
[1766105450041,0.0117066,85469.0,85463.0,0.3608]
[1766105450241,0.0117062,85472.0,85463.0,0.49965]
[1766105450546,1.02168,85474.0,85464.0,0.13885]
[1766105450839,0.66088,85474.0,85472.0,0.3608]
[1766105451238,0.6606,85482.0,85472.0,0.3608]
[1766105451743,0.79671,85482.0,85472.0,0.3608]
[1766105452044,0.147815,85480.0,85472.0,0.3608]
[1766105454947,0.1478154,85478.0,85464.0,0.13885]
[1766105455149,0.3608,85477.0,85464.0,0.13885]
[1766105456052,0.3608,85477.0,85464.0,0.1505572]
[1766105456349,0.3608,85477.0,85464.0,0.13885]
[1766105456643,0.0117058,85475.0,85464.0,0.13885]
[1766105456837,0.13611,85474.0,85463.0,0.3608]
[1766105457039,0.3608,85470.0,85459.0,0.13902552]
[1766105459864,0.3608,85470.0,85459.0,0.15073342]
[1766105460347,0.3608,85470.0,85462.0,0.13885]
[1766105460540,0.5086155,85477.0,85466.0,0.13885]
[1766105460740,0.13611,85476.0,85465.0,0.3608]
[1766105461646,0.0117057,85475.0,85465.0,0.3608]
[1766105462150,0.1587257,85475.0,85465.0,0.3608]
[1766105463752,0.011706,85473.0,85465.0,0.3608]
[1766105464255,0.14702,85475.0,85465.0,0.3608]
[1766105465554,0.1587257,85475.0,85465.0,0.3608]
[1766105466156,0.14702,85475.0,85465.0,0.3608]
[1766105466455,0.14702,85475.0,85465.0,0.3725071]
[1766105467551,0.14702,85475.0,85465.0,0.3608]
[1766105468846,0.3608,85477.0,85465.0,0.3608]
[1766105468847,0.3608,85477.0,85465.0,0.5110271]
[1766105469449,0.3608,85477.0,85467.0,0.1502268]
[1766105470467,0.3608,85477.0,85469.0,0.0117065]
[1766105470762,0.4206,85482.0,85477.0,0.13355]
[1766105470959,2.4715437,85490.0,85477.0,0.13355]
[1766105471360,0.14702,85490.0,85483.0,0.3608]
[1766105471953,0.14702,85494.0,85483.0,0.3608]
[1766105472163,0.14702,85494.0,85478.0,0.00017552]
[1766105472464,0.14702,85489.0,85478.0,0.00017552]
[1766105473564,0.14816,85495.0,85486.0,0.3608]
[1766105474066,0.14816,85493.0,85486.0,0.2808]
[1766105474257,0.14816,85493.0,85478.0,0.00017552]
[1766105475464,0.14816,85493.0,85478.0,0.13758552]
[1766105476669,0.1598634,85493.0,85478.0,0.00017552]
[1766105480768,0.1432,85484.0,85478.0,2e-08]
[1766105481755,0.3608,85487.0,85478.0,2e-08]
[1766105481958,0.504,85487.0,85478.0,2e-08]
[1766105482255,0.1432,85486.0,85478.0,2e-08]
[1766105483566,0.1432,85519.0,85495.0,0.11001]
[1766105483766,0.1432,85519.0,85478.0,2e-08]
[1766105483767,0.1432,85517.0,85503.0,0.3608]
[1766105483971,0.1432,85517.0,85498.0,0.0117025]
[1766105483972,0.1432,85517.0,85509.0,0.3608]
[1766105484358,0.2368,85521.0,85509.0,0.47096]
[1766105485057,0.3916995,85521.0,85509.0,0.3608]
[1766105485257,0.1432,85514.0,85506.0,0.00017542]
[1766105485459,0.1432,85514.0,85502.0,0.011702]
[1766105485658,0.1432,85514.0,85499.0,0.3725024]
[1766105487258,0.1432,85514.0,85499.0,0.5135424]
[1766105488068,0.1432,85514.0,85502.0,0.3608]
[1766105488464,0.36097507,85515.0,85504.0,0.1527417]
[1766105488663,0.3608,85526.0,85513.0,0.46567]
[1766105488664,0.0116991,85524.0,85513.0,0.46567]
[1766105488869,0.2982191,85524.0,85513.0,0.46567]
[1766105490172,0.0116993,85522.0,85513.0,0.46567]
[1766105490363,0.28652,85524.0,85513.0,0.46567]
[1766105490569,0.1432,85523.0,85513.0,0.2808]
[1766105490872,0.504,85519.0,85503.0,0.1147118]
[1766105491257,0.504,85519.0,85505.0,0.0117015]
[1766105491572,0.3608,85519.0,85505.0,0.1527415]
[1766105492870,0.3608,85526.0,85514.0,7e-05]
[1766105493176,0.0116979,85533.0,85522.0,0.3608]
[1766105493558,0.1432,85535.0,85522.0,0.3608]
[1766105493760,0.1432,85535.0,85519.0,0.00017542]
[1766105493761,0.3608,85527.0,85519.0,0.00017542]
[1766105494883,0.25772,85527.0,85519.0,0.00017542]
[1766105495372,0.1432,85533.0,85524.0,0.3608]
[1766105496477,0.3608,85536.0,85524.0,0.3608]